[Event "Titled Tuesday Blitz August 22 Early 2023"]
[White "Bazilius, Augustinas"]
[Black "Buraczewski, Rafal"]
[WhiteFideId "12832251"]
[BlackFideId "1155245"]
[WhiteElo "2458"]
[BlackElo "2116"]
[Result "1-0"]
[Round "7"]
[TimeControl "180+1"]
[Date "2023.08.22"]
[WhiteClock "0:00:06"]
[BlackClock "0:00:05"]
[Board "194"]

1. d4 {[%clk 0:03:00]}  Nf6 {[%clk 0:02:59]} 2. c4 {[%clk 0:02:58]}  g6 {[%clk 0:02:59]} 3. Nf3 {[%clk 0:02:58]}  Bg7 {[%clk 0:02:59]} 4. g3 {[%clk 0:02:57]}  O-O {[%clk 0:02:57]} 5. Bg2 {[%clk 0:02:57]}  d5 {[%clk 0:02:58]} 6. cxd5 {[%clk 0:02:52]}  Nxd5 {[%clk 0:02:58]} 7. O-O {[%clk 0:02:52]}  c6 {[%clk 0:02:53]} 8. e4 {[%clk 0:02:43]}  Nb6 {[%clk 0:02:52]} 9. Nc3 {[%clk 0:02:43]}  Bg4 {[%clk 0:02:51]} 10. e5 {[%clk 0:02:29]}  Na6 {[%clk 0:02:30]} 11. Ne4 {[%clk 0:02:18]}  f6 {[%clk 0:02:06]} 12. exf6 {[%clk 0:02:03]}  exf6 {[%clk 0:02:07]} 13. h3 {[%clk 0:01:54]}  Bf5 {[%clk 0:02:00]} 14. Nc5 {[%clk 0:01:51]}  Nxc5 {[%clk 0:01:58]} 15. dxc5 {[%clk 0:01:52]}  Nd5 {[%clk 0:00:57]} 16. Nd4 {[%clk 0:01:47]}  Qd7 {[%clk 0:00:55]} 17. Nxf5 {[%clk 0:01:39]}  Qxf5 {[%clk 0:00:54]} 18. Qb3 {[%clk 0:01:40]}  Rab8 {[%clk 0:00:42]} 19. Rd1 {[%clk 0:01:32]}  Rfd8 {[%clk 0:00:41]} 20. Bf4 {[%clk 0:01:24]}  Rbc8 {[%clk 0:00:37]} 21. Bd6 {[%clk 0:01:05]}  Bf8 {[%clk 0:00:12]} 22. Bxd5+ {[%clk 0:00:58]}  cxd5 {[%clk 0:00:12]} 23. Rxd5 {[%clk 0:00:59]}  Qe6 {[%clk 0:00:13]} 24. Rad1 {[%clk 0:00:54]}  b6 {[%clk 0:00:13]} 25. cxb6 {[%clk 0:00:46]}  axb6 {[%clk 0:00:10]} 26. Bxf8 {[%clk 0:00:29]}  Rxd5 {[%clk 0:00:09]} 27. Qxd5 {[%clk 0:00:19]}  Qxd5 {[%clk 0:00:08]} 28. Rxd5 {[%clk 0:00:20]}  Kxf8 {[%clk 0:00:07]} 29. Rd6 {[%clk 0:00:21]}  Ra8 {[%clk 0:00:04]} 30. Rxf6+ {[%clk 0:00:19]}  Ke7 {[%clk 0:00:03]} 31. Rxb6 {[%clk 0:00:20]}  Rxa2 {[%clk 0:00:03]} 32. Rb7+ {[%clk 0:00:20]}  Kf6 {[%clk 0:00:03]} 33. Rxh7 {[%clk 0:00:21]}  Rxb2 {[%clk 0:00:03]} 34. Rh4 {[%clk 0:00:19]}  Rb1+ {[%clk 0:00:03]} 35. Kg2 {[%clk 0:00:19]}  Rb3 {[%clk 0:00:04]} 36. Rf4+ {[%clk 0:00:18]}  Kg5 {[%clk 0:00:04]} 37. h4+ {[%clk 0:00:19]}  Kh6 {[%clk 0:00:04]} 38. Kh3 {[%clk 0:00:18]}  Kh5 {[%clk 0:00:04]} 39. Rf8 {[%clk 0:00:11]}  Kh6 {[%clk 0:00:04]} 40. Kg4 {[%clk 0:00:09]}  Kg7 {[%clk 0:00:04]} 41. Rf3 {[%clk 0:00:07]}  Rb4+ {[%clk 0:00:05]} 42. Rf4 {[%clk 0:00:08]}  Rb2 {[%clk 0:00:05]} 43. f3 {[%clk 0:00:04]}  Rb3 {[%clk 0:00:06]} 44. Re4 {[%clk 0:00:03]}  Ra3 {[%clk 0:00:07]} 45. Kf4 {[%clk 0:00:04]}  Ra5 {[%clk 0:00:08]} 46. g4 {[%clk 0:00:04]}  Kf6 {[%clk 0:00:08]} 47. Kg3 {[%clk 0:00:05]}  Kg7 {[%clk 0:00:08]} 48. Rd4 {[%clk 0:00:04]}  Ra3 {[%clk 0:00:08]} 49. Rd7+ {[%clk 0:00:04]}  Kf6 {[%clk 0:00:08]} 50. Rd6+ {[%clk 0:00:05]}  Kg7 {[%clk 0:00:08]} 51. Rb6 {[%clk 0:00:05]}  Kf7 {[%clk 0:00:08]} 52. Rb5 {[%clk 0:00:05]}  Ra4 {[%clk 0:00:08]} 53. h5 {[%clk 0:00:06]}  gxh5 {[%clk 0:00:08]} 54. Rxh5 {[%clk 0:00:07]}  Kg7 {[%clk 0:00:09]} 55. Re5 {[%clk 0:00:06]}  Kf6 {[%clk 0:00:09]} 56. Re4 {[%clk 0:00:07]}  Ra3 {[%clk 0:00:09]} 57. Kf4 {[%clk 0:00:07]}  Ra1 {[%clk 0:00:10]} 58. g5+ {[%clk 0:00:06]}  Kg6 {[%clk 0:00:11]} 59. Re6+ {[%clk 0:00:06]}  Kf7 {[%clk 0:00:11]} 60. Kf5 {[%clk 0:00:04]}  Kg7 {[%clk 0:00:12]} 61. Re5 {[%clk 0:00:04]}  Ra7 {[%clk 0:00:11]} 62. f4 {[%clk 0:00:05]}  Rf7+ {[%clk 0:00:11]} 63. Kg4 {[%clk 0:00:06]}  Kg6 {[%clk 0:00:12]} 64. Re6+ {[%clk 0:00:06]}  Kg7 {[%clk 0:00:12]} 65. f5 {[%clk 0:00:03]}  Ra7 {[%clk 0:00:12]} 66. Kh5 {[%clk 0:00:04]}  Ra1 {[%clk 0:00:12]} 67. Re7+ {[%clk 0:00:03]}  Kf8 {[%clk 0:00:12]} 68. f6 {[%clk 0:00:04]}  Rg1 {[%clk 0:00:11]} 69. Kg6 {[%clk 0:00:04]}  Rg3 {[%clk 0:00:10]} 70. Rh7 {[%clk 0:00:04]}  Kg8 {[%clk 0:00:09]} 71. Rb7 {[%clk 0:00:04]}  Rxg5+ {[%clk 0:00:06]} 72. Kxg5 {[%clk 0:00:04]}  Kf8 {[%clk 0:00:07]} 73. Kg6 {[%clk 0:00:04]}  Kg8 {[%clk 0:00:07]} 74. Rg7+ {[%clk 0:00:04]}  Kf8 {[%clk 0:00:04]} 75. Kf5 {[%clk 0:00:04]}  Ke8 {[%clk 0:00:04]} 76. Ke6 {[%clk 0:00:05]}  Kf8 {[%clk 0:00:05]} 77. Rf7+ {[%clk 0:00:05]}  Kg8 {[%clk 0:00:05]} 78. Ke7 {[%clk 0:00:06]}  Kh8 {[%clk 0:00:06]} 79. Rf8+ {[%clk 0:00:06]}  Kh7 {[%clk 0:00:06]} 80. f7 {[%clk 0:00:07]}  Kg7 {[%clk 0:00:06]} 81. Rg8+ {[%clk 0:00:08]}  Kh7 {[%clk 0:00:07]} 82. Rg1 {[%clk 0:00:09]}  Kh8 {[%clk 0:00:07]} 83. Rg2 {[%clk 0:00:06]}  Kh7 {[%clk 0:00:07]} 84. f8=N+ {[%clk 0:00:06]}  Kh6 {[%clk 0:00:06]} 85. Rg6+ {[%clk 0:00:05]}  Kh5 {[%clk 0:00:05]} 86. Kf6 {[%clk 0:00:06]}  Kh4 {[%clk 0:00:05]} 87. Ne6 {[%clk 0:00:07]}  Kh3 {[%clk 0:00:05]} 88. Ng7 {[%clk 0:00:08]}  Kh4 {[%clk 0:00:05]} 89. Rg5 {[%clk 0:00:09]}  Kh3 {[%clk 0:00:05]} 90. Kf5 {[%clk 0:00:10]}  Kh2 {[%clk 0:00:05]} 91. Rg4 {[%clk 0:00:10]}  Kh3 {[%clk 0:00:06]} 92. Kf4 {[%clk 0:00:10]}  Kh2 {[%clk 0:00:06]} 93. Rg3 {[%clk 0:00:11]}  Kh1 {[%clk 0:00:06]} 94. Nf5 {[%clk 0:00:11]}  Kh2 {[%clk 0:00:06]} 95. Ne3 {[%clk 0:00:11]}  Kh1 {[%clk 0:00:03]} 96. Kf3 {[%clk 0:00:11]}  Kh2 {[%clk 0:00:03]} 97. Nc4 {[%clk 0:00:06]}  Kh1 {[%clk 0:00:02]} 98. Nd6 {[%clk 0:00:06]}  Kh2 {[%clk 0:00:03]} 99. Ne4 {[%clk 0:00:07]}  Kh1 {[%clk 0:00:03]} 100. Nf6 {[%clk 0:00:08]}  Kh2 {[%clk 0:00:03]} 101. Ng4+ {[%clk 0:00:09]}  Kh1 {[%clk 0:00:04]} 102. Nf2+ {[%clk 0:00:06]}  Kh2 {[%clk 0:00:05]} 103. Rg2# {[%clk 0:00:06]} 1-0


[Site "https://www.chess.com"]

[Event "Titled Tuesday Blitz August 22 Early 2023"]
[White "Rodriguez Santiago, Jaime"]
[Black "Mrudul Dehankar"]
[WhiteFideId "3100898"]
[BlackFideId "25096990"]
[WhiteElo "2248"]
[BlackElo "2398"]
[Result "0-1"]
[Round "7"]
[TimeControl "180+1"]
[Date "2023.08.22"]
[WhiteClock "0:00:02"]
[BlackClock "0:00:10"]
[Board "195"]

1. d4 {[%clk 0:03:00]}  Nf6 {[%clk 0:02:57]} 2. c4 {[%clk 0:03:00]}  e6 {[%clk 0:02:57]} 3. Nc3 {[%clk 0:02:59]}  Bb4 {[%clk 0:02:58]} 4. e3 {[%clk 0:02:58]}  b6 {[%clk 0:02:56]} 5. Ne2 {[%clk 0:02:56]}  c5 {[%clk 0:02:54]} 6. a3 {[%clk 0:02:55]}  Ba5 {[%clk 0:02:54]} 7. d5 {[%clk 0:02:45]}  Bb7 {[%clk 0:02:43]} 8. e4 {[%clk 0:02:44]}  Nxe4 {[%clk 0:02:39]} 9. Qd3 {[%clk 0:02:14]}  Nxc3 {[%clk 0:02:12]} 10. Nxc3 {[%clk 0:02:15]}  O-O {[%clk 0:02:12]} 11. Bd2 {[%clk 0:02:09]}  exd5 {[%clk 0:02:08]} 12. cxd5 {[%clk 0:02:09]}  Re8+ {[%clk 0:02:07]} 13. Kd1 {[%clk 0:02:06]}  d6 {[%clk 0:01:59]} 14. Qg3 {[%clk 0:02:03]}  Qf6 {[%clk 0:01:52]} 15. Bb5 {[%clk 0:02:00]}  Rf8 {[%clk 0:01:47]} 16. Re1 {[%clk 0:01:50]}  a6 {[%clk 0:01:40]} 17. Bd3 {[%clk 0:01:38]}  Nd7 {[%clk 0:01:31]} 18. Bg5 {[%clk 0:01:22]}  Qd4 {[%clk 0:01:27]} 19. Re4 {[%clk 0:01:21]}  Bxc3 {[%clk 0:00:45]} 20. Rxd4 {[%clk 0:01:20]}  Bxd4 {[%clk 0:00:45]} 21. Qxd6 {[%clk 0:01:19]}  Ne5 {[%clk 0:00:41]} 22. Be4 {[%clk 0:01:08]}  f5 {[%clk 0:00:32]} 23. Bf3 {[%clk 0:00:55]}  Rae8 {[%clk 0:00:31]} 24. Qxb6 {[%clk 0:00:52]}  Nxf3 {[%clk 0:00:29]} 25. gxf3 {[%clk 0:00:52]}  Bxd5 {[%clk 0:00:30]} 26. Kc2 {[%clk 0:00:49]}  Rb8 {[%clk 0:00:27]} 27. Qd6 {[%clk 0:00:44]}  Bxf3 {[%clk 0:00:23]} 28. Bc1 {[%clk 0:00:33]}  Be4+ {[%clk 0:00:20]} 29. Kd1 {[%clk 0:00:33]}  Rfd8 {[%clk 0:00:19]} 30. Qe6+ {[%clk 0:00:33]}  Kh8 {[%clk 0:00:18]} 31. Ke1 {[%clk 0:00:31]}  Re8 {[%clk 0:00:16]} 32. Qd6 {[%clk 0:00:29]}  Rbd8 {[%clk 0:00:16]} 33. Qc7 {[%clk 0:00:28]}  Bf3+ {[%clk 0:00:13]} 34. Be3 {[%clk 0:00:26]}  Be5 {[%clk 0:00:10]} 35. Qxc5 {[%clk 0:00:24]}  f4 {[%clk 0:00:11]} 36. Rc1 {[%clk 0:00:18]}  fxe3 {[%clk 0:00:11]} 37. fxe3 {[%clk 0:00:18]}  Bd4 {[%clk 0:00:11]} 38. Qc7 {[%clk 0:00:09]}  Bxe3 {[%clk 0:00:10]} 39. Rc3 {[%clk 0:00:08]}  Bf4+ {[%clk 0:00:10]} 40. Kf2 {[%clk 0:00:09]}  Bxc7 {[%clk 0:00:10]} 41. Kxf3 {[%clk 0:00:09]}  Be5 {[%clk 0:00:10]} 42. Rc6 {[%clk 0:00:09]}  Rd6 {[%clk 0:00:10]} 43. Rc2 {[%clk 0:00:06]}  Rf6+ {[%clk 0:00:10]} 44. Kg2 {[%clk 0:00:02]}  h5 {[%clk 0:00:10]} 0-1


[Site "https://www.chess.com"]

[Event "Titled Tuesday Blitz August 22 Early 2023"]
[White "Ronka, Erik"]
[Black "Schut, Han"]
[WhiteFideId "505080"]
[BlackFideId "1005561"]
[WhiteElo "2395"]
[BlackElo "2242"]
[Result "1-0"]
[Round "7"]
[TimeControl "180+1"]
[Date "2023.08.22"]
[WhiteClock "0:00:31"]
[BlackClock "0:00:00"]
[Board "196"]

1. e4 {[%clk 0:03:00]}  c5 {[%clk 0:02:53]} 2. a3 {[%clk 0:02:59]}  g6 {[%clk 0:02:52]} 3. b4 {[%clk 0:02:59]}  Bg7 {[%clk 0:02:51]} 4. Nc3 {[%clk 0:02:59]}  cxb4 {[%clk 0:02:43]} 5. axb4 {[%clk 0:02:59]}  Nc6 {[%clk 0:02:35]} 6. b5 {[%clk 0:02:59]}  Nd4 {[%clk 0:02:36]} 7. Nf3 {[%clk 0:02:28]}  d6 {[%clk 0:02:26]} 8. Nxd4 {[%clk 0:02:24]}  Bxd4 {[%clk 0:02:26]} 9. Be2 {[%clk 0:02:09]}  Nf6 {[%clk 0:02:22]} 10. Ra4 {[%clk 0:02:04]}  Qb6 {[%clk 0:01:56]} 11. O-O {[%clk 0:02:03]}  Bd7 {[%clk 0:01:55]} 12. Bb2 {[%clk 0:01:57]}  e5 {[%clk 0:00:47]} 13. Qa1 {[%clk 0:01:34]}  O-O {[%clk 0:00:35]} 14. Nd5 {[%clk 0:01:21]}  Nxd5 {[%clk 0:00:34]} 15. Bxd4 {[%clk 0:01:21]}  exd4 {[%clk 0:00:33]} 16. exd5 {[%clk 0:01:22]}  Bxb5 {[%clk 0:00:23]} 17. Rb1 {[%clk 0:01:07]}  a6 {[%clk 0:00:15]} 18. Rxb5 {[%clk 0:00:57]}  axb5 {[%clk 0:00:08]} 19. Rxa8 {[%clk 0:00:58]}  Qc5 {[%clk 0:00:07]} 20. Rxf8+ {[%clk 0:00:57]}  Kxf8 {[%clk 0:00:07]} 21. Qa2 {[%clk 0:00:55]}  b4 {[%clk 0:00:04]} 22. h3 {[%clk 0:00:54]}  Kg7 {[%clk 0:00:04]} 23. Qc4 {[%clk 0:00:54]}  f6 {[%clk 0:00:01]} 24. Qxc5 {[%clk 0:00:42]}  dxc5 {[%clk 0:00:02]} 25. Bc4 {[%clk 0:00:37]}  Kf7 {[%clk 0:00:02]} 26. f4 {[%clk 0:00:35]}  Ke7 {[%clk 0:00:02]} 27. Kf2 {[%clk 0:00:32]}  Kd6 {[%clk 0:00:03]} 28. d3 {[%clk 0:00:31]}  b5 {[%clk 0:00:03]} 29. Bxb5 {[%clk 0:00:30]}  Kxd5 {[%clk 0:00:03]} 30. Bc4+ {[%clk 0:00:31]}  Kd6 {[%clk 0:00:04]} 31. Kf3 {[%clk 0:00:31]}  h5 {[%clk 0:00:00]} 32. g4 {[%clk 0:00:31]} 1-0


[Site "https://www.chess.com"]

[Event "Titled Tuesday Blitz August 22 Early 2023"]
[White "KorolDimitriy75"]
[Black "Kiseleva, Arina"]
[BlackFideId "4164989"]
[WhiteElo "2373"]
[BlackElo "2237"]
[Result "1-0"]
[Round "7"]
[TimeControl "180+1"]
[Date "2023.08.22"]
[WhiteClock "0:00:06"]
[BlackClock "0:00:02"]
[Board "197"]

1. d4 {[%clk 0:03:00]}  Nf6 {[%clk 0:02:59]} 2. c4 {[%clk 0:03:01]}  e6 {[%clk 0:02:59]} 3. Nc3 {[%clk 0:03:01]}  Bb4 {[%clk 0:03:00]} 4. Qc2 {[%clk 0:03:02]}  O-O {[%clk 0:02:58]} 5. e4 {[%clk 0:03:02]}  d6 {[%clk 0:02:58]} 6. e5 {[%clk 0:03:01]}  dxe5 {[%clk 0:02:56]} 7. dxe5 {[%clk 0:03:02]}  Nfd7 {[%clk 0:02:45]} 8. Nf3 {[%clk 0:03:02]}  Nc6 {[%clk 0:02:31]} 9. Bf4 {[%clk 0:03:01]}  Ne7 {[%clk 0:02:31]} 10. O-O-O {[%clk 0:02:48]}  Ng6 {[%clk 0:02:28]} 11. Bg3 {[%clk 0:02:46]}  Qe7 {[%clk 0:02:05]} 12. h4 {[%clk 0:02:45]}  h5 {[%clk 0:02:04]} 13. Bd3 {[%clk 0:02:44]}  Bxc3 {[%clk 0:02:01]} 14. Qxc3 {[%clk 0:02:10]}  b6 {[%clk 0:01:53]} 15. Qc2 {[%clk 0:01:32]}  Qe8 {[%clk 0:01:46]} 16. Ng5 {[%clk 0:00:52]}  Nc5 {[%clk 0:01:29]} 17. Be2 {[%clk 0:00:28]}  Bb7 {[%clk 0:01:24]} 18. Bxh5 {[%clk 0:00:26]}  a5 {[%clk 0:01:16]} 19. f3 {[%clk 0:00:22]}  a4 {[%clk 0:00:55]} 20. Nxf7 {[%clk 0:00:22]}  Qxf7 {[%clk 0:00:51]} 21. Bxg6 {[%clk 0:00:21]}  Qe7 {[%clk 0:00:49]} 22. h5 {[%clk 0:00:20]}  a3 {[%clk 0:00:32]} 23. Bh4 {[%clk 0:00:16]}  axb2+ {[%clk 0:00:31]} 24. Kb1 {[%clk 0:00:15]}  Rf6 {[%clk 0:00:26]} 25. exf6 {[%clk 0:00:15]}  gxf6 {[%clk 0:00:26]} 26. Qc3 {[%clk 0:00:14]}  e5 {[%clk 0:00:25]} 27. h6 {[%clk 0:00:13]}  Na4 {[%clk 0:00:23]} 28. Qb3 {[%clk 0:00:12]}  Kh8 {[%clk 0:00:17]} 29. Rhe1 {[%clk 0:00:10]}  Ba6 {[%clk 0:00:16]} 30. Be4 {[%clk 0:00:08]}  Rb8 {[%clk 0:00:15]} 31. Bd5 {[%clk 0:00:07]}  b5 {[%clk 0:00:15]} 32. f4 {[%clk 0:00:07]}  Qf8 {[%clk 0:00:13]} 33. fxe5 {[%clk 0:00:07]}  fxe5 {[%clk 0:00:12]} 34. Rf1 {[%clk 0:00:07]}  Qe8 {[%clk 0:00:08]} 35. Bf6+ {[%clk 0:00:07]}  Kh7 {[%clk 0:00:08]} 36. Qd3+ {[%clk 0:00:07]}  e4 {[%clk 0:00:08]} 37. Bxe4+ {[%clk 0:00:07]}  Kg8 {[%clk 0:00:07]} 38. Bd5+ {[%clk 0:00:07]}  Kf8 {[%clk 0:00:02]} 39. Bg5+ {[%clk 0:00:06]} 1-0


[Site "https://www.chess.com"]

[Event "Titled Tuesday Blitz August 22 Early 2023"]
[White "Mikhaylova, Irina"]
[Black "hsd2016"]
[WhiteFideId "4109040"]
[WhiteElo "2321"]
[BlackElo "2222"]
[Result "0-1"]
[Round "7"]
[TimeControl "180+1"]
[Date "2023.08.22"]
[WhiteClock "0:00:18"]
[BlackClock "0:00:08"]
[Board "199"]

1. d4 {[%clk 0:03:00]}  Nf6 {[%clk 0:02:56]} 2. Nf3 {[%clk 0:03:01]}  e6 {[%clk 0:02:54]} 3. c4 {[%clk 0:03:01]}  b6 {[%clk 0:02:53]} 4. a3 {[%clk 0:03:01]}  Bb7 {[%clk 0:02:53]} 5. Nc3 {[%clk 0:03:01]}  d5 {[%clk 0:02:47]} 6. Qc2 {[%clk 0:03:01]}  Nbd7 {[%clk 0:02:45]} 7. cxd5 {[%clk 0:02:56]}  exd5 {[%clk 0:02:30]} 8. Bg5 {[%clk 0:02:56]}  a6 {[%clk 0:02:27]} 9. e3 {[%clk 0:02:56]}  Bd6 {[%clk 0:02:14]} 10. Bd3 {[%clk 0:02:56]}  h6 {[%clk 0:02:11]} 11. Bh4 {[%clk 0:02:55]}  O-O {[%clk 0:02:08]} 12. O-O {[%clk 0:02:55]}  Qe7 {[%clk 0:02:04]} 13. Rac1 {[%clk 0:02:54]}  Rfe8 {[%clk 0:01:56]} 14. Rfd1 {[%clk 0:02:53]}  c5 {[%clk 0:01:41]} 15. Bf5 {[%clk 0:02:53]}  Rad8 {[%clk 0:01:31]} 16. dxc5 {[%clk 0:01:50]}  bxc5 {[%clk 0:01:17]} 17. Nxd5 {[%clk 0:01:06]}  Bxd5 {[%clk 0:00:39]} 18. Rxd5 {[%clk 0:01:04]}  g5 {[%clk 0:00:28]} 19. Rcd1 {[%clk 0:00:44]}  Nb6 {[%clk 0:00:25]} 20. Rxd6 {[%clk 0:00:25]}  Rxd6 {[%clk 0:00:24]} 21. Rxd6 {[%clk 0:00:25]}  Qxd6 {[%clk 0:00:24]} 22. Bg3 {[%clk 0:00:25]}  Qd5 {[%clk 0:00:20]} 23. h4 {[%clk 0:00:18]}  g4 {[%clk 0:00:19]} 24. Nd2 {[%clk 0:00:18]}  Rd8 {[%clk 0:00:15]} 25. Nf1 {[%clk 0:00:18]}  Nc4 {[%clk 0:00:12]} 26. Qc3 {[%clk 0:00:17]}  Qxf5 {[%clk 0:00:12]} 27. Qxc4 {[%clk 0:00:17]}  Rd1 {[%clk 0:00:08]} 28. Kh2 {[%clk 0:00:16]}  Qe6 {[%clk 0:00:05]} 29. Qe2 {[%clk 0:00:14]}  Qd5 {[%clk 0:00:05]} 30. Qxa6 {[%clk 0:00:12]}  Qe6 {[%clk 0:00:03]} 31. e4 {[%clk 0:00:13]}  Qxa6 {[%clk 0:00:03]} 32. Ne3 {[%clk 0:00:13]}  Re1 {[%clk 0:00:02]} 33. Nf5 {[%clk 0:00:13]}  Qf1 {[%clk 0:00:02]} 34. Ne7+ {[%clk 0:00:12]}  Kg7 {[%clk 0:00:02]} 35. Be5 {[%clk 0:00:12]}  Qh1+ {[%clk 0:00:02]} 36. Kg3 {[%clk 0:00:12]}  Rxe4 {[%clk 0:00:02]} 37. Bxf6+ {[%clk 0:00:12]}  Kxf6 {[%clk 0:00:03]} 38. Nd5+ {[%clk 0:00:12]}  Ke5 {[%clk 0:00:03]} 39. Ne3 {[%clk 0:00:13]}  Qe1 {[%clk 0:00:04]} 40. Nxg4+ {[%clk 0:00:13]}  Rxg4+ {[%clk 0:00:04]} 41. Kxg4 {[%clk 0:00:13]}  Qxf2 {[%clk 0:00:05]} 42. Kh3 {[%clk 0:00:14]}  Qxb2 {[%clk 0:00:06]} 43. g3 {[%clk 0:00:14]}  Qxa3 {[%clk 0:00:07]} 44. Kg4 {[%clk 0:00:14]}  c4 {[%clk 0:00:07]} 45. Kh5 {[%clk 0:00:15]}  c3 {[%clk 0:00:08]} 46. g4 {[%clk 0:00:16]}  c2 {[%clk 0:00:09]} 47. g5 {[%clk 0:00:17]}  c1=Q {[%clk 0:00:10]} 48. Kxh6 {[%clk 0:00:17]}  Qf3 {[%clk 0:00:10]} 49. h5 {[%clk 0:00:18]}  Qf5 {[%clk 0:00:08]} 50. Kg7 {[%clk 0:00:18]}  Qcxg5+ {[%clk 0:00:07]} 51. Kf8 {[%clk 0:00:19]}  Qc8+ {[%clk 0:00:07]} 52. Kxf7 {[%clk 0:00:18]}  Qf6# {[%clk 0:00:08]} 0-1


[Site "https://www.chess.com"]

[Event "Titled Tuesday Blitz August 22 Early 2023"]
[White "Sovetbekova, Nurai"]
[Black "Flis, Pawel"]
[WhiteFideId "13801910"]
[BlackFideId "1112864"]
[WhiteElo "2309"]
[BlackElo "2126"]
[Result "1-0"]
[Round "7"]
[TimeControl "180+1"]
[Date "2023.08.22"]
[WhiteClock "0:00:50"]
[BlackClock "0:00:19"]
[Board "200"]

1. d4 {[%clk 0:03:00]}  Nf6 {[%clk 0:02:49]} 2. c4 {[%clk 0:03:00]}  c5 {[%clk 0:02:48]} 3. d5 {[%clk 0:03:00]}  b5 {[%clk 0:02:48]} 4. Qc2 {[%clk 0:03:00]}  bxc4 {[%clk 0:02:43]} 5. e4 {[%clk 0:02:55]}  d6 {[%clk 0:02:44]} 6. Bxc4 {[%clk 0:02:54]}  g6 {[%clk 0:02:44]} 7. Nc3 {[%clk 0:02:51]}  Bg7 {[%clk 0:02:44]} 8. Nf3 {[%clk 0:02:51]}  O-O {[%clk 0:02:45]} 9. O-O {[%clk 0:02:50]}  Ba6 {[%clk 0:02:43]} 10. b3 {[%clk 0:02:46]}  Bxc4 {[%clk 0:02:39]} 11. bxc4 {[%clk 0:02:46]}  Na6 {[%clk 0:02:39]} 12. Bb2 {[%clk 0:02:34]}  Nb4 {[%clk 0:02:38]} 13. Qe2 {[%clk 0:02:33]}  Nd7 {[%clk 0:02:32]} 14. Na4 {[%clk 0:02:29]}  Bxb2 {[%clk 0:02:23]} 15. Nxb2 {[%clk 0:02:29]}  f6 {[%clk 0:02:19]} 16. a3 {[%clk 0:02:19]}  Na6 {[%clk 0:02:16]} 17. Nd3 {[%clk 0:02:19]}  Qa5 {[%clk 0:02:10]} 18. Rfb1 {[%clk 0:02:14]}  Rab8 {[%clk 0:02:10]} 19. Nd2 {[%clk 0:02:02]}  Ne5 {[%clk 0:01:54]} 20. Nxe5 {[%clk 0:02:00]}  fxe5 {[%clk 0:01:55]} 21. Nb3 {[%clk 0:01:53]}  Qa4 {[%clk 0:01:54]} 22. Nd2 {[%clk 0:01:47]}  Rxb1+ {[%clk 0:01:39]} 23. Nxb1 {[%clk 0:01:43]}  Rb8 {[%clk 0:01:29]} 24. Nc3 {[%clk 0:01:41]}  Qb3 {[%clk 0:01:28]} 25. Nb5 {[%clk 0:01:36]}  Rb7 {[%clk 0:01:17]} 26. h3 {[%clk 0:01:24]}  Nc7 {[%clk 0:01:15]} 27. Qg4 {[%clk 0:01:09]}  Qxc4 {[%clk 0:00:29]} 28. Qc8+ {[%clk 0:01:03]}  Kg7 {[%clk 0:00:28]} 29. Nxc7 {[%clk 0:00:56]}  Rb2 {[%clk 0:00:24]} 30. Ne6+ {[%clk 0:00:56]}  Kh6 {[%clk 0:00:19]} 31. Qf8+ {[%clk 0:00:54]}  Kh5 {[%clk 0:00:20]} 32. g4+ {[%clk 0:00:50]}  Kh4 {[%clk 0:00:19]} 33. Qh6# {[%clk 0:00:50]} 1-0


[Site "https://www.chess.com"]

[Event "Titled Tuesday Blitz August 22 Early 2023"]
[White "Floresvillar Gonzalez, Luis Migu"]
[Black "Blokhin, Sofia"]
[WhiteFideId "5100542"]
[BlackFideId "4508190"]
[WhiteElo "2124"]
[BlackElo "2290"]
[Result "0-1"]
[Round "7"]
[TimeControl "180+1"]
[Date "2023.08.22"]
[WhiteClock "0:00:00"]
[BlackClock "0:00:11"]
[Board "201"]

1. e4 {[%clk 0:02:54]}  c5 {[%clk 0:02:57]} 2. d4 {[%clk 0:02:53]}  cxd4 {[%clk 0:02:55]} 3. c3 {[%clk 0:02:54]}  dxc3 {[%clk 0:02:54]} 4. Nxc3 {[%clk 0:02:54]}  e6 {[%clk 0:02:55]} 5. Nf3 {[%clk 0:02:53]}  Nc6 {[%clk 0:02:54]} 6. Bc4 {[%clk 0:02:52]}  a6 {[%clk 0:02:54]} 7. Bf4 {[%clk 0:02:52]}  Nf6 {[%clk 0:02:54]} 8. e5 {[%clk 0:02:52]}  Nh5 {[%clk 0:02:39]} 9. Be3 {[%clk 0:02:44]}  g6 {[%clk 0:02:35]} 10. Ne4 {[%clk 0:02:37]}  Nxe5 {[%clk 0:02:05]} 11. Nxe5 {[%clk 0:02:22]}  Qa5+ {[%clk 0:02:01]} 12. Nc3 {[%clk 0:02:14]}  Qxe5 {[%clk 0:01:59]} 13. O-O {[%clk 0:02:15]}  Qc7 {[%clk 0:01:53]} 14. Be2 {[%clk 0:02:06]}  Bg7 {[%clk 0:01:51]} 15. Bxh5 {[%clk 0:02:05]}  gxh5 {[%clk 0:01:50]} 16. Qxh5 {[%clk 0:02:04]}  b6 {[%clk 0:01:46]} 17. Rac1 {[%clk 0:01:58]}  Qe5 {[%clk 0:01:41]} 18. Qf3 {[%clk 0:01:51]}  d5 {[%clk 0:01:38]} 19. Bxb6 {[%clk 0:01:41]}  Bb7 {[%clk 0:01:35]} 20. Rfe1 {[%clk 0:01:39]}  Qd6 {[%clk 0:01:14]} 21. Be3 {[%clk 0:01:30]}  O-O {[%clk 0:01:07]} 22. Rcd1 {[%clk 0:01:21]}  Rad8 {[%clk 0:00:59]} 23. Qg4 {[%clk 0:01:12]}  Kh8 {[%clk 0:00:53]} 24. Bg5 {[%clk 0:01:11]}  Rc8 {[%clk 0:00:45]} 25. Ne4 {[%clk 0:01:11]}  Qb4 {[%clk 0:00:39]} 26. Nf6 {[%clk 0:00:56]}  Qxg4 {[%clk 0:00:29]} 27. Nxg4 {[%clk 0:00:55]}  Bxb2 {[%clk 0:00:28]} 28. Rb1 {[%clk 0:00:55]}  Bc3 {[%clk 0:00:27]} 29. Bf6+ {[%clk 0:00:49]}  Bxf6 {[%clk 0:00:27]} 30. Nxf6 {[%clk 0:00:49]}  Bc6 {[%clk 0:00:26]} 31. h4 {[%clk 0:00:47]}  Kg7 {[%clk 0:00:25]} 32. Ng4 {[%clk 0:00:42]}  Rb8 {[%clk 0:00:23]} 33. Rbc1 {[%clk 0:00:40]}  Bb5 {[%clk 0:00:20]} 34. Ne5 {[%clk 0:00:39]}  Rbc8 {[%clk 0:00:19]} 35. f4 {[%clk 0:00:34]}  f6 {[%clk 0:00:19]} 36. Nf3 {[%clk 0:00:31]}  Kf7 {[%clk 0:00:15]} 37. Rxc8 {[%clk 0:00:29]}  Rxc8 {[%clk 0:00:15]} 38. Nd4 {[%clk 0:00:29]}  Bd7 {[%clk 0:00:16]} 39. g3 {[%clk 0:00:25]}  Rc4 {[%clk 0:00:16]} 40. Nb3 {[%clk 0:00:24]}  Re4 {[%clk 0:00:14]} 41. Rxe4 {[%clk 0:00:21]}  dxe4 {[%clk 0:00:15]} 42. Nc5 {[%clk 0:00:21]}  Bc6 {[%clk 0:00:14]} 43. Nxa6 {[%clk 0:00:20]}  Ke7 {[%clk 0:00:13]} 44. Nb4 {[%clk 0:00:20]}  Bd5 {[%clk 0:00:13]} 45. Kf2 {[%clk 0:00:17]}  Kd6 {[%clk 0:00:12]} 46. Ke3 {[%clk 0:00:14]}  Bb7 {[%clk 0:00:11]} 47. a3 {[%clk 0:00:11]}  f5 {[%clk 0:00:11]} 48. Nc2 {[%clk 0:00:10]}  Kc5 {[%clk 0:00:11]} 49. Nd4 {[%clk 0:00:10]}  Bd5 {[%clk 0:00:11]} 50. h5 {[%clk 0:00:08]}  Kc4 {[%clk 0:00:11]} 51. h6 {[%clk 0:00:00]}  Kc3 {[%clk 0:00:11]} 0-1


[Site "https://www.chess.com"]